bitfinex/quotes_BTCUSD_20240613
["timestamp","ask_amount","ask_price","bid_price","bid_amount"]
[1718312114301,0.00940501,66626.0,66625.0,0.91733457]
[1718312114709,0.00940501,66626.0,66625.0,1.00667757]
[1718312115147,0.00940501,66626.0,66625.0,1.10683477]
[1718312115353,0.00940501,66626.0,66625.0,1.02513861]
[1718312115956,0.00940501,66626.0,66625.0,1.52808074]
[1718312116166,1e-08,66626.0,66625.0,2.01905974]
[1718312116387,0.00940501,66638.0,66637.0,0.560109]
[1718312116605,0.00940501,66638.0,66637.0,1.46140686]
[1718312116815,0.00940501,66638.0,66637.0,1.63043574]
[1718312117025,1e-08,66638.0,66637.0,1.99336452]
[1718312117233,1e-08,66638.0,66637.0,1.81845574]
[1718312117441,0.00940501,66645.0,66642.0,0.68797004]
[1718312117662,0.00940501,66645.0,66642.0,1.60634605]
[1718312117884,1e-08,66643.0,66642.0,1.87480174]
[1718312118109,1e-08,66643.0,66642.0,1.90756634]
[1718312118324,0.0415648,66664.0,66642.0,1.90756634]
[1718312118325,4e-08,66651.0,66650.0,0.37421924]
[1718312118536,4e-08,66651.0,66650.0,1.10353074]
[1718312118758,4e-08,66651.0,66650.0,1.21514512]
[1718312119224,4e-08,66651.0,66650.0,2.00375574]
[1718312119435,4e-08,66651.0,66650.0,1.7687325]
[1718312119649,4e-08,66651.0,66650.0,1.70968074]
[1718312120311,4e-08,66651.0,66650.0,1.80689385]
[1718312120559,4e-08,66651.0,66650.0,1.71768074]
[1718312121144,4e-08,66651.0,66650.0,1.82912892]
[1718312121353,4e-08,66651.0,66650.0,1.71768074]
[1718312121568,4e-08,66651.0,66650.0,1.82913648]
[1718312121786,4e-08,66651.0,66650.0,1.82913462]
[1718312122486,4e-08,66651.0,66650.0,1.71768074]
[1718312122903,4e-08,66651.0,66650.0,1.3398217]
[1718312123131,4e-08,66651.0,66650.0,0.45373681]
[1718312123348,4e-08,66651.0,66650.0,0.39703872]
[1718312123569,4e-08,66651.0,66650.0,0.4240722]
[1718312123785,4e-08,66651.0,66650.0,0.46863872]
[1718312123982,4e-08,66651.0,66650.0,0.3524722]
[1718312124210,0.14500004,66651.0,66650.0,0.264037]
[1718312124495,0.14500004,66651.0,66650.0,0.3670722]
[1718312124630,0.14500004,66651.0,66650.0,0.358637]
[1718312124835,0.14500004,66651.0,66650.0,0.3670722]
[1718312125085,0.14500004,66651.0,66650.0,0.137]
[1718312125280,0.167216,66651.0,66650.0,0.014]
[1718312125487,0.14500004,66651.0,66650.0,0.014]
[1718312126519,0.14500004,66651.0,66650.0,0.181037]
[1718312126711,0.14500004,66651.0,66650.0,0.173037]
[1718312126919,0.14500004,66651.0,66650.0,0.181037]
[1718312127134,0.14500004,66651.0,66650.0,0.281037]
[1718312127953,0.14500004,66651.0,66650.0,0.287037]
[1718312128369,0.14500004,66651.0,66650.0,0.279037]
[1718312128770,0.14500004,66651.0,66650.0,0.287037]
[1718312129387,4e-08,66651.0,66650.0,0.587112]
[1718312129592,4e-08,66651.0,66650.0,0.73143193]
[1718312130295,4e-08,66651.0,66650.0,0.50295693]
[1718312130513,0.14250004,66651.0,66650.0,0.358637]
[1718312130959,0.14250004,66651.0,66650.0,0.418633]
[1718312133763,4e-08,66651.0,66650.0,0.718708]
[1718312134437,4e-08,66651.0,66650.0,0.647108]
[1718312134652,4e-08,66651.0,66650.0,0.718708]
[1718312135095,4e-08,66651.0,66650.0,0.647108]
[1718312135359,4e-08,66651.0,66650.0,0.718708]
[1718312136667,4e-08,66651.0,66650.0,0.647108]
[1718312136901,4e-08,66651.0,66650.0,0.347033]
[1718312137147,4e-08,66651.0,66650.0,0.418633]
[1718312139952,4e-08,66651.0,66650.0,0.347033]
[1718312140195,4e-08,66651.0,66650.0,0.418633]
[1718312145346,4e-08,66651.0,66650.0,0.404633]
[1718312145484,4e-08,66651.0,66650.0,0.410633]
[1718312145703,4e-08,66651.0,66650.0,0.418633]
[1718312145905,4e-08,66651.0,66650.0,0.412633]
[1718312146304,4e-08,66651.0,66650.0,0.410633]
[1718312146757,4e-08,66651.0,66650.0,0.418633]
[1718312148554,4e-08,66651.0,66650.0,0.43638751]
[1718312149816,0.06240004,66651.0,66650.0,0.43638751]
[1718312152524,0.14020004,66651.0,66650.0,0.43638751]
[1718312153368,0.14020004,66651.0,66650.0,0.22635451]
[1718312154037,0.162416,66651.0,66650.0,0.22635451]
[1718312154466,0.14020004,66651.0,66650.0,0.22635451]
[1718312154958,0.162416,66651.0,66650.0,0.22635451]
[1718312155181,0.182416,66651.0,66650.0,0.22635451]
[1718312155427,0.14020004,66651.0,66650.0,0.22635451]
[1718312155614,0.14020004,66651.0,66650.0,0.37639151]
[1718312156262,0.14020004,66651.0,66650.0,0.42095803]
[1718312156479,4e-08,66651.0,66650.0,0.42095803]
[1718312156902,4e-08,66651.0,66650.0,0.37639151]
[1718312157374,4e-08,66651.0,66650.0,0.54502704]
[1718312157618,4e-08,66651.0,66650.0,0.38428584]
[1718312157817,4e-08,66651.0,66650.0,0.44358179]
[1718312158239,4e-08,66651.0,66650.0,0.52393637]
[1718312158894,4e-08,66651.0,66650.0,0.45674609]
[1718312159297,4e-08,66651.0,66650.0,0.54588729]
[1718312160084,4e-08,66651.0,66650.0,0.52813278]
[1718312160338,4e-08,66651.0,66650.0,0.43899158]
[1718312161204,4e-08,66651.0,66650.0,0.55044546]
[1718312162140,4e-08,66651.0,66650.0,0.43899158]
[1718312162288,4e-08,66651.0,66650.0,0.55044546]
[1718312162712,0.181016,66651.0,66650.0,0.34697623]
[1718312162885,0.161016,66651.0,66650.0,0.30712235]
[1718312163090,0.161016,66651.0,66650.0,0.39684636]
[1718312163876,0.13880004,66651.0,66650.0,0.39684636]
[1718312164810,0.13880004,66651.0,66650.0,0.32524636]
[1718312164996,0.161016,66651.0,66650.0,0.39684636]
[1718312165249,0.161016,66651.0,66650.0,0.23552235]
[1718312165489,0.161016,66651.0,66650.0,0.32523928]
[1718312165695,0.161016,66651.0,66650.0,0.39683928]
[1718312166230,0.13880004,66651.0,66650.0,0.30712235]
[1718312166442,0.181016,66651.0,66650.0,0.23552235]
[1718312166643,0.181016,66651.0,66650.0,0.30712235]
[1718312167317,0.181016,66651.0,66650.0,0.34697623]
[1718312167529,0.181016,66651.0,66650.0,0.23552235]
[1718312167948,0.181016,66651.0,66650.0,0.05516777]
[1718312168154,0.181016,66651.0,66650.0,0.1000523]
[1718312168322,0.181016,66651.0,66650.0,0.05516777]
[1718312169216,0.181016,66651.0,66650.0,0.1000523]
[1718312170007,0.181016,66651.0,66650.0,0.05516777]
[1718312171877,0.181016,66651.0,66650.0,0.037]
[1718312172514,0.181016,66651.0,66650.0,0.023]
[1718312172692,0.0822,66650.0,66649.0,0.023]
[1718312173529,0.12441596,66650.0,66649.0,0.023]
[1718312174738,0.12441596,66650.0,66649.0,0.028]
[1718312175780,0.12441596,66650.0,66649.0,0.034]
[1718312181966,0.12441596,66650.0,66649.0,0.1056]
[1718312182612,0.12441596,66650.0,66649.0,0.011]
[1718312182817,0.18851596,66650.0,66649.0,0.011]
[1718312183462,0.18851596,66650.0,66649.0,0.006]
[1718312183874,0.18851596,66650.0,66649.0,0.007]
[1718312184077,0.18851596,66650.0,66649.0,0.001]
[1718312184283,0.18851596,66650.0,66649.0,0.002]
[1718312184481,0.36590069,66650.0,66649.0,0.002]
[1718312184715,0.37590069,66650.0,66649.0,0.002]
[1718312185550,0.18901596,66648.0,66647.0,0.00085]
[1718312185761,0.37490069,66648.0,66647.0,0.00085]
[1718312186132,0.36490069,66648.0,66647.0,0.00085]
[1718312187263,0.36490069,66648.0,66647.0,0.00285]
[1718312187490,0.22058076,66648.0,66647.0,0.00285]
[1718312187750,0.22058076,66648.0,66647.0,0.07745]
[1718312188074,0.22058076,66648.0,66647.0,0.00585]
[1718312188502,0.22058076,66648.0,66647.0,0.155894]
[1718312189301,0.22058076,66648.0,66647.0,0.00585]
[1718312197354,0.22058076,66648.0,66647.0,0.155894]
[1718312198287,0.22058076,66648.0,66647.0,0.00585]
[1718312199234,0.22058076,66648.0,66647.0,0.155894]
[1718312199650,0.08378076,66648.0,66647.0,0.155894]
[1718312200037,0.08378076,66648.0,66647.0,0.178894]
[1718312202874,0.08378076,66648.0,66647.0,0.19652971]
[1718312203079,0.08378076,66648.0,66647.0,0.04648571]
[1718312214166,0.08378076,66648.0,66647.0,0.02885]
[1718312217510,0.08378076,66648.0,66647.0,0.0468893]
[1718312220061,0.08378076,66648.0,66647.0,0.02885]
[1718312227681,0.08471577,66648.0,66647.0,0.02885]
[1718312230377,0.08471577,66648.0,66647.0,0.073735]
[1718312232159,0.45089566,66648.0,66647.0,0.050735]
[1718312232373,0.3687357,66648.0,66647.0,0.00585]
[1718312233621,0.3687357,66648.0,66647.0,0.00085]
[1718312234401,0.3687357,66648.0,66647.0,0.00185]
[1718312234598,0.3787357,66648.0,66647.0,0.00185]
[1718312235401,0.3687357,66648.0,66647.0,0.00185]
[1718312235819,0.3787357,66648.0,66647.0,0.00185]
[1718312237559,0.3687357,66648.0,66647.0,0.00185]
[1718312237776,0.3787357,66648.0,66647.0,0.00185]
[1718312238195,0.3687357,66648.0,66647.0,0.00185]
[1718312238992,0.3787357,66648.0,66647.0,0.00185]
[1718312239218,0.3687357,66648.0,66647.0,0.00185]
[1718312239972,0.3787357,66648.0,66647.0,0.00185]
[1718312242549,0.3687357,66648.0,66647.0,0.00185]
[1718312244172,0.3787357,66648.0,66647.0,0.00185]
[1718312244656,0.3687357,66648.0,66647.0,0.00185]
[1718312244852,0.3787357,66648.0,66647.0,0.00185]
[1718312245447,0.3687357,66648.0,66647.0,0.00185]
[1718312245642,0.3787357,66648.0,66647.0,0.00185]
[1718312248216,0.3687357,66648.0,66647.0,0.00185]
[1718312248588,0.3787357,66648.0,66647.0,0.00185]
[1718312250382,0.3687357,66648.0,66647.0,0.00185]
[1718312251296,0.2290357,66648.0,66647.0,0.00185]
[1718312252171,0.3045357,66648.0,66647.0,0.00185]
[1718312261237,0.00093501,66648.0,66647.0,0.07345]
[1718312261446,0.00093501,66648.0,66647.0,0.383794]
[1718312261651,0.00093501,66648.0,66647.0,0.53901805]
[1718312261831,0.00093501,66648.0,66647.0,0.47162806]
[1718312262232,0.00093501,66648.0,66647.0,0.53889776]
[1718312262454,0.00093501,66648.0,66647.0,0.77171606]
[1718312262662,0.00093501,66648.0,66647.0,1.74608799]
[1718312262888,4e-08,66651.0,66650.0,0.9520222]
[1718312263138,4e-08,66651.0,66650.0,1.43356023]
[1718312263515,4e-08,66651.0,66650.0,1.59100953]
[1718312264487,4e-08,66651.0,66650.0,1.46456023]
[1718312264669,4e-08,66651.0,66650.0,1.47056023]
[1718312264816,4e-08,66651.0,66650.0,1.53566413]
[1718312265032,4e-08,66651.0,66650.0,1.45788009]
[1718312265238,4e-08,66651.0,66650.0,0.54918393]
[1718312265444,4e-08,66651.0,66650.0,0.479037]
[1718312267589,4e-08,66651.0,66650.0,0.54677432]
[1718312268258,4e-08,66651.0,66650.0,0.99643193]
[1718312268489,4e-08,66651.0,66650.0,1.04116925]
[1718312269338,4e-08,66651.0,66650.0,0.99643193]
[1718312273463,4e-08,66651.0,66650.0,1.01864793]
[1718312273660,4e-08,66651.0,66650.0,0.59697293]
[1718312273881,4e-08,66651.0,66650.0,0.66857293]
[1718312274834,4e-08,66651.0,66650.0,0.59697293]
[1718312275044,4e-08,66651.0,66650.0,0.66857293]
[1718312275256,4e-08,66651.0,66650.0,0.374216]
[1718312275462,0.022216,66651.0,66650.0,0.114]
[1718312275666,0.022216,66651.0,66650.0,0.0856]
[1718312275876,0.042216,66651.0,66650.0,0.0856]
[1718312276025,0.022216,66651.0,66650.0,0.0856]
[1718312276431,4e-08,66651.0,66650.0,0.235637]
[1718312276613,4e-08,66651.0,66650.0,0.335637]
[1718312276812,4e-08,66651.0,66650.0,0.358637]
[1718312278878,4e-08,66651.0,66650.0,0.287037]
[1718312279082,4e-08,66651.0,66650.0,0.441337]
[1718312279312,4e-08,66651.0,66650.0,0.501337]
[1718312279528,4e-08,66651.0,66650.0,0.801412]
[1718312279956,4e-08,66651.0,66650.0,0.57405693]
[1718312280224,4e-08,66651.0,66650.0,0.94573193]
[1718312286174,4e-08,66651.0,66650.0,0.429737]
[1718312286376,4e-08,66651.0,66650.0,0.501337]
[1718312290193,4e-08,66651.0,66650.0,0.51952009]
[1718312291043,4e-08,66651.0,66650.0,0.52037009]
[1718312291244,0.022216,66651.0,66650.0,0.15603309]
[1718312291459,0.022216,66651.0,66650.0,0.12763309]
[1718312291676,4e-08,66651.0,66650.0,0.22763309]
[1718312291877,4e-08,66651.0,66650.0,0.359487]
[1718312292080,0.022216,66651.0,66650.0,0.359487]
[1718312295330,4e-08,66651.0,66650.0,0.359487]
[1718312303458,4e-08,66651.0,66650.0,0.48394346]
[1718312305315,4e-08,66651.0,66650.0,0.52877223]
[1718312306182,4e-08,66651.0,66650.0,0.56942435]
[1718312306604,0.022216,66651.0,66650.0,0.56942435]
[1718312307248,0.022216,66651.0,66650.0,0.67492522]
[1718312308820,0.022216,66651.0,66650.0,0.74672522]
[1718312309049,0.022216,66651.0,66650.0,0.81832522]
[1718312310070,0.022216,66651.0,66650.0,0.75642522]
[1718312310275,0.022216,66651.0,66650.0,0.67492522]
[1718312310893,0.042216,66651.0,66650.0,0.67492522]
[1718312311102,0.022216,66651.0,66650.0,0.67492522]
[1718312311303,0.022216,66651.0,66650.0,0.58526768]
[1718312311721,0.022216,66651.0,66650.0,0.56702994]
[1718312312486,0.022216,66651.0,66650.0,0.49542994]
[1718312312690,0.022216,66651.0,66650.0,0.56702994]
[1718312314214,0.170016,66651.0,66650.0,0.56702994]
[1718312314423,0.190016,66651.0,66650.0,0.56702994]
[1718312314846,0.042216,66651.0,66650.0,0.56702994]
[1718312315090,4e-08,66651.0,66650.0,0.56702994]
[1718312315216,4e-08,66651.0,66650.0,0.8406286]
[1718312315419,4e-08,66651.0,66650.0,0.72855668]
[1718312315621,4e-08,66651.0,66650.0,1.02863168]
[1718312317548,4e-08,66651.0,66650.0,1.47302661]
[1718312319231,4e-08,66651.0,66650.0,1.60751292]
[1718312321318,4e-08,66651.0,66650.0,1.47302661]
[1718312321569,4e-08,66651.0,66650.0,1.52894814]
[1718312322567,4e-08,66651.0,66650.0,1.22887314]
[1718312323951,4e-08,66651.0,66650.0,1.2107464]
[1718312325540,4e-08,66651.0,66650.0,1.5108214]
[1718312326386,4e-08,66651.0,66650.0,1.52905538]
[1718312329002,4e-08,66651.0,66650.0,1.22898038]
[1718312329402,4e-08,66651.0,66650.0,1.52905538]
[1718312329602,4e-08,66651.0,66650.0,1.22898038]
[1718312330839,4e-08,66651.0,66650.0,1.50745538]
[1718312331015,4e-08,66651.0,66650.0,1.71354169]
[1718312331216,4e-08,66651.0,66650.0,1.27898038]
[1718312331837,4e-08,66651.0,66650.0,1.31182663]
[1718312332246,4e-08,66651.0,66650.0,1.61190163]
[1718312332855,4e-08,66651.0,66650.0,1.31182663]
[1718312333534,4e-08,66651.0,66650.0,1.61190163]
[1718312335132,4e-08,66651.0,66650.0,1.31182663]
[1718312335335,4e-08,66651.0,66650.0,1.24022663]
[1718312335550,4e-08,66651.0,66650.0,1.11842663]
[1718312335900,4e-08,66651.0,66650.0,1.08558038]
[1718312336493,4e-08,66651.0,66650.0,1.22030329]
[1718312336919,4e-08,66651.0,66650.0,1.08558038]
[1718312338721,4e-08,66651.0,66650.0,1.0790394]
[1718312339384,4e-08,66651.0,66650.0,1.06080542]
[1718312341323,4e-08,66651.0,66650.0,1.21374647]
[1718312341955,4e-08,66651.0,66650.0,1.14214647]
[1718312342193,4e-08,66651.0,66650.0,1.21374647]
[1718312343525,4e-08,66651.0,66650.0,0.91367147]
[1718312344180,4e-08,66651.0,66650.0,0.77895474]
[1718312344494,4e-08,66651.0,66650.0,0.91367147]
[1718312345920,4e-08,66651.0,66650.0,0.9139935]
[1718312346965,4e-08,66651.0,66650.0,0.77929193]
[1718312347203,4e-08,66651.0,66650.0,0.70769193]
[1718312347383,4e-08,66651.0,66650.0,0.77929193]
[1718312349347,4e-08,66651.0,66650.0,0.81250709]
[1718312351467,4e-08,66651.0,66650.0,0.74090709]
[1718312351690,4e-08,66651.0,66650.0,0.81250709]
[1718312352249,0.07874015,66654.0,66653.0,0.15003]
[1718312352447,0.07874015,66654.0,66653.0,0.24463]
[1718312352650,0.07874015,66654.0,66653.0,0.60224872]
[1718312353935,0.07874015,66654.0,66653.0,0.60824872]
[1718312354609,0.07967516,66654.0,66653.0,0.60824872]
[1718312355850,0.07967516,66654.0,66653.0,0.61624872]
[1718312356479,0.07967516,66654.0,66653.0,0.60824872]
[1718312356862,0.07967516,66654.0,66653.0,0.61624872]
[1718312358284,0.07967516,66654.0,66653.0,0.60824872]
[1718312358514,0.07967516,66654.0,66653.0,0.60224872]
[1718312358920,0.07967516,66654.0,66653.0,0.60824872]
[1718312359142,0.07967516,66654.0,66653.0,0.61024872]
[1718312359558,0.07967516,66654.0,66653.0,0.61624872]
[1718312359762,0.07967516,66654.0,66653.0,0.60824872]
[1718312360171,0.07967516,66654.0,66653.0,0.61624872]
[1718312362158,0.00093501,66654.0,66653.0,0.7509412]
[1718312363761,0.00093501,66654.0,66653.0,0.78380528]
[1718312363968,0.00093501,66654.0,66653.0,0.6491128]
[1718312364177,0.1406,66666.0,66665.0,0.150003]
[1718312364424,0.1406,66666.0,66665.0,0.59152647]
[1718312364665,0.1406,66666.0,66665.0,0.50222172]
[1718312365680,0.1406,66666.0,66665.0,0.50522172]
[1718312366309,0.1406,66666.0,66665.0,0.59503422]
[1718312367992,0.18281596,66666.0,66665.0,0.52343422]
[1718312368250,0.18281596,66666.0,66665.0,0.35521872]
[1718312368527,0.18281596,66666.0,66665.0,0.50522172]
[1718312369071,0.18281596,66666.0,66665.0,0.50022084]
[1718312369364,0.18281596,66666.0,66665.0,0.56756501]
[1718312369637,0.18281596,66666.0,66665.0,0.49596501]
[1718312369841,0.18281596,66666.0,66665.0,0.56556501]
[1718312370020,0.18281596,66666.0,66665.0,0.56456501]
[1718312370220,0.18281596,66666.0,66665.0,0.57156501]
[1718312370425,0.18281596,66666.0,66665.0,0.57756501]
[1718312370625,0.18281596,66666.0,66665.0,0.50596501]
[1718312370861,0.18281596,66666.0,66665.0,0.57756501]
[1718312371193,0.18281596,66666.0,66665.0,0.50536578]
[1718312371376,0.18281596,66666.0,66665.0,0.5778941]
[1718312373518,0.12538076,66667.0,66666.0,0.150001]
[1718312373723,0.14538076,66667.0,66666.0,0.35341961]
[1718312374142,0.22198076,66667.0,66666.0,0.35341961]
[1718312375514,0.22198076,66667.0,66666.0,0.20341861]
[1718312375730,0.22198076,66667.0,66666.0,0.18041861]
[1718312375983,0.22198076,66667.0,66666.0,0.18641861]
[1718312376817,0.22198076,66667.0,66666.0,0.18541861]
[1718312377026,0.22198076,66667.0,66666.0,0.18041861]
[1718312377257,0.22198076,66667.0,66666.0,0.18541861]
[1718312378630,0.22198076,66667.0,66666.0,0.18041861]
[1718312378985,0.22198076,66667.0,66666.0,0.12543899]
[1718312379194,0.22198076,66667.0,66666.0,0.18138377]
[1718312380381,0.06378076,66667.0,66666.0,0.18138377]
[1718312380583,0.06378076,66667.0,66666.0,0.2493043]
[1718312380584,0.08378076,66667.0,66666.0,0.2493043]
[1718312380787,0.06378076,66667.0,66666.0,0.42176557]
[1718312381040,0.06378076,66667.0,66666.0,0.49378401]
[1718312381246,0.06378076,66667.0,66666.0,0.55628401]
[1718312382444,0.06378076,66667.0,66666.0,0.55528401]
[1718312382845,0.06378076,66667.0,66666.0,0.56328401]
[1718312383147,0.06378076,66667.0,66666.0,0.56928401]
[1718312383356,0.06378076,66667.0,66666.0,0.55528401]
[1718312383608,0.06378076,66667.0,66666.0,0.56928401]
[1718312383813,0.02,66670.0,66666.0,0.56928401]
[1718312383814,0.02221596,66672.0,66667.0,0.299998]
[1718312384017,0.0415648,66671.0,66670.0,0.04490408]
[1718312384222,0.0415648,66671.0,66670.0,0.42497577]
[1718312384664,0.02221596,66672.0,66671.0,0.14999]
[1718312384665,0.06378076,66672.0,66671.0,0.14999]
[1718312384917,0.08378076,66672.0,66671.0,0.39827378]
[1718312385124,0.08378076,66672.0,66671.0,0.35337377]
[1718312385125,0.06378076,66672.0,66671.0,0.35337377]
[1718312386540,0.02221596,66674.0,66673.0,0.149985]
[1718312386748,0.02939401,66677.0,66673.0,0.149985]
[1718312386749,0.00939401,66677.0,66676.0,0.149979]
[1718312386892,0.00939401,66677.0,66676.0,0.44684442]
[1718312387092,0.00939401,66677.0,66676.0,0.46984442]
[1718312388537,0.00939401,66677.0,66676.0,0.42496277]
[1718312390256,0.03160997,66677.0,66676.0,0.46981354]
[1718312390494,0.03160997,66677.0,66676.0,0.39821354]
[1718312390740,0.03160997,66677.0,66676.0,0.46981354]
[1718312391177,0.03160997,66677.0,66676.0,0.42496277]
[1718312391588,0.00939401,66677.0,66676.0,0.42496277]
[1718312391796,0.03160997,66677.0,66676.0,0.42496277]
[1718312392449,0.00939401,66677.0,66676.0,0.42496277]
[1718312393049,0.00939401,66677.0,66676.0,0.57186277]
[1718312394688,0.00939401,66677.0,66676.0,0.61671354]
[1718312394898,0.00939401,66677.0,66676.0,0.57186277]
[1718312395038,0.00939401,66677.0,66676.0,0.61671354]
[1718312395443,0.00939401,66677.0,66676.0,0.57186277]
[1718312398479,0.00939401,66677.0,66676.0,1.1661407]
[1718312398681,0.00491401,66677.0,66676.0,1.54325243]
[1718312398949,0.00491401,66677.0,66676.0,1.87601939]
[1718312399148,0.00491401,66677.0,66676.0,1.84321043]
[1718312399496,0.00491401,66677.0,66676.0,1.86076575]
[1718312399916,0.00491401,66677.0,66676.0,1.90757106]
[1718312400527,0.00491401,66677.0,66676.0,1.86676575]
[1718312400733,0.00491401,66677.0,66676.0,2.02456575]
[1718312400936,0.00491401,66677.0,66676.0,1.68162658]
[1718312401142,0.00491401,66677.0,66676.0,0.98573051]
[1718312401413,0.00491401,66677.0,66676.0,0.74251809]
[1718312401554,0.00491401,66677.0,66676.0,0.78729314]
[1718312401801,0.00491401,66677.0,66676.0,0.74251809]
[1718312402348,0.00491401,66677.0,66676.0,0.81811809]
[1718312402563,0.00491401,66677.0,66676.0,1.33555459]
[1718312402924,0.00491401,66677.0,66676.0,1.39206085]
[1718312403125,0.00491401,66677.0,66676.0,1.03294428]
[1718312403336,0.00491401,66677.0,66676.0,1.04356009]
[1718312403538,0.00491401,66677.0,66676.0,1.03556009]
[1718312403768,0.00491401,66677.0,66676.0,0.96843802]
[1718312403954,0.00491401,66677.0,66676.0,0.97043802]
[1718312404563,0.00491401,66677.0,66676.0,1.40251809]
[1718312404767,0.00491401,66677.0,66676.0,1.45816672]
[1718312404878,0.00491401,66677.0,66676.0,1.46416672]
[1718312405100,0.00491401,66677.0,66676.0,1.10856009]
[1718312405302,0.00491401,66677.0,66676.0,1.09265841]
[1718312405660,0.00491401,66677.0,66676.0,1.04143802]
[1718312405994,0.00491401,66677.0,66676.0,1.16416892]
[1718312406407,0.00491401,66677.0,66676.0,1.51489884]
[1718312406579,0.00491401,66677.0,66676.0,1.74773477]
[1718312406781,0.00491401,66677.0,66676.0,1.44777677]
[1718312406957,0.00491401,66677.0,66676.0,1.53730401]
[1718312408228,0.00491401,66677.0,66676.0,1.44777677]
[1718312408638,0.00491401,66677.0,66676.0,1.45301032]
[1718312408841,0.00491401,66677.0,66676.0,1.54253756]
[1718312409228,0.00491401,66677.0,66676.0,1.45301032]
[1718312410054,0.00491401,66677.0,66676.0,1.54253756]
[1718312410377,0.00491401,66677.0,66676.0,1.45301032]
[1718312410621,0.00491401,66677.0,66676.0,1.54253756]
[1718312411097,0.00491401,66677.0,66676.0,1.45301032]
[1718312411346,0.00491401,66677.0,66676.0,1.54253756]
[1718312411628,0.00491401,66677.0,66676.0,1.45301032]
[1718312412065,0.00491401,66677.0,66676.0,1.54253756]
[1718312412280,0.00491401,66677.0,66676.0,1.45301032]
[1718312413800,0.00491401,66677.0,66676.0,1.435455]
[1718312414053,0.00491401,66677.0,66676.0,1.60276628]
[1718312414281,0.00491401,66677.0,66676.0,1.51323904]
[1718312414466,0.00491401,66677.0,66676.0,1.60276628]
[1718312415155,0.00491401,66677.0,66676.0,1.62076249]
[1718312415604,0.00491401,66677.0,66676.0,1.54297845]
[1718312419644,0.00491401,66677.0,66676.0,1.54382845]
[1718312419826,0.00491401,66677.0,66676.0,1.76269441]
[1718312420043,0.00491401,66677.0,66676.0,1.57335188]
[1718312421508,0.00491401,66677.0,66676.0,1.87330988]
[1718312422161,0.00491401,66677.0,66676.0,1.79552584]
[1718312422364,0.00491401,66677.0,66676.0,1.49556784]
[1718312423151,0.00491401,66677.0,66676.0,1.57335188]
[1718312423380,0.00491401,66677.0,66676.0,1.43337284]
[1718312423581,0.00491401,66677.0,66676.0,0.99281484]
[1718312423873,0.00491401,66677.0,66676.0,1.03158341]
[1718312424043,0.00491401,66677.0,66676.0,1.01993953]
[1718312424249,0.00491401,66677.0,66676.0,1.04230226]
[1718312424391,0.00491401,66677.0,66676.0,0.97520266]
[1718312425026,0.00491401,66677.0,66676.0,1.09962461]
[1718312425366,0.00491401,66677.0,66676.0,1.03252501]
[1718312425566,0.00491401,66677.0,66676.0,1.0145288]
[1718312425913,0.19212997,66677.0,66676.0,0.26719467]
[1718312426126,0.19212997,66677.0,66676.0,0.20046732]
[1718312426327,0.19212997,66677.0,66676.0,0.27206732]
[1718312426771,0.19212997,66677.0,66676.0,0.22283027]
[1718312426977,0.19212997,66677.0,66676.0,0.14762833]
[1718312427185,0.19212997,66677.0,66676.0,0.07002833]
[1718312427390,0.23369477,66677.0,66676.0,0.07002833]
[1718312427618,0.23369477,66677.0,66676.0,0.07602833]
[1718312427815,0.24369477,66677.0,66676.0,0.07002833]
[1718312428029,0.24369477,66677.0,66676.0,0.06202833]
[1718312428244,0.23369477,66677.0,66676.0,0.06802833]
[1718312428446,0.23369477,66677.0,66676.0,0.07602833]
[1718312428665,0.23369477,66677.0,66676.0,0.07002833]
[1718312428666,0.24369477,66677.0,66676.0,0.07002833]
[1718312428879,0.24369477,66677.0,66676.0,0.00085]
[1718312429330,0.24369477,66677.0,66676.0,0.00185]
[1718312430804,0.24369477,66677.0,66676.0,0.00085]
[1718312431026,0.19147881,66677.0,66676.0,0.07245]
[1718312431261,0.19147881,66677.0,66676.0,0.222429]
[1718312431474,0.19147881,66677.0,66676.0,0.245429]
[1718312432096,0.14991401,66677.0,66676.0,0.245429]
[1718312432724,0.14991401,66677.0,66676.0,0.253429]
[1718312433026,0.14991401,66677.0,66676.0,0.181829]
[1718312433638,0.14991401,66677.0,66676.0,0.187829]
[1718312433773,0.19147881,66677.0,66676.0,0.187829]
[1718312433999,0.19147881,66677.0,66676.0,0.179829]
[1718312434237,0.00491401,66677.0,66676.0,0.38690951]
[1718312434477,0.00491401,66677.0,66676.0,0.51029275]
[1718312434677,0.00491401,66677.0,66676.0,0.81025075]
[1718312434914,0.00491401,66677.0,66676.0,0.91796843]
[1718312435161,0.00491401,66677.0,66676.0,0.82850229]
[1718312435375,0.00491401,66677.0,66676.0,0.91796843]
[1718312435596,0.00491401,66677.0,66676.0,0.82850229]
[1718312436032,0.00491401,66677.0,66676.0,0.91806952]
[1718312437135,0.00491401,66677.0,66676.0,0.89981798]
[1718312437831,0.00491401,66677.0,66676.0,0.89983497]
[1718312438040,0.00491401,66677.0,66676.0,0.87127068]
[1718312438483,0.0047335,66677.0,66676.0,0.87127068]
[1718312439205,0.0047335,66677.0,66676.0,1.00154605]
[1718312440423,0.0047335,66677.0,66676.0,0.88972855]
[1718312440643,0.0047335,66677.0,66676.0,1.00154605]
[1718312441029,0.0047335,66677.0,66676.0,0.88972855]
[1718312442886,0.0415648,66684.0,66676.0,0.88972855]
[1718312442887,1e-08,66688.0,66687.0,0.8464972]
[1718312443091,1e-08,66688.0,66687.0,1.9378391]
[1718312443316,1e-08,66688.0,66687.0,1.8482897]
[1718312443731,1e-08,66688.0,66687.0,1.77050566]
[1718312444355,1e-08,66688.0,66687.0,1.77150566]
[1718312444777,1e-08,66688.0,66687.0,1.77050566]
[1718312445209,1e-08,66688.0,66687.0,1.77850566]
[1718312445431,1e-08,66688.0,66687.0,1.78450566]
[1718312454374,1e-08,66688.0,66687.0,1.77499888]
[1718312455197,1e-08,66688.0,66687.0,1.89585911]
[1718312455399,1e-08,66688.0,66687.0,1.90429431]
[1718312455644,1e-08,66688.0,66687.0,1.96424631]
[1718312456326,1e-08,66688.0,66687.0,1.85251438]
[1718312456545,1e-08,66688.0,66687.0,1.87957211]
[1718312457171,1e-08,66688.0,66687.0,1.99127883]
[1718312460528,1e-08,66688.0,66687.0,2.06906287]
[1718312461274,1e-08,66688.0,66687.0,2.06903305]
[1718312461892,1e-08,66688.0,66687.0,1.70147211]
[1718312462099,1e-08,66688.0,66687.0,1.99124676]
[1718312462935,1e-08,66688.0,66687.0,1.88434676]
[1718312463884,1e-08,66688.0,66687.0,1.86678326]